bitfinex/quotes_BTCUSD_20220201
["timestamp","ask_amount","ask_price","bid_price","bid_amount"]
[1643698629195,0.00052568,38347.0,38346.0,0.56009427]
[1643698629893,0.00052568,38347.0,38346.0,0.61009427]
[1643698631153,0.00052568,38347.0,38346.0,0.401124]
[1643698631548,0.00052568,38347.0,38346.0,0.351124]
[1643698632548,0.00052568,38347.0,38346.0,0.56006552]
[1643698632748,0.00052568,38347.0,38346.0,0.351124]
[1643698634354,0.00026489,38347.0,38346.0,0.351124]
[1643698634551,0.00026489,38347.0,38346.0,0.55910243]
[1643698635594,0.00026489,38347.0,38346.0,0.351124]
[1643698636195,0.00026489,38347.0,38346.0,0.66221371]
[1643698636393,0.00026489,38347.0,38346.0,0.451124]
[1643698636793,0.00026489,38347.0,38346.0,0.65957249]
[1643698638399,0.00012449,38347.0,38346.0,0.65957249]
[1643698639647,0.00012449,38347.0,38346.0,0.451124]
[1643698640946,0.00012449,38347.0,38346.0,0.65984563]
[1643698642255,0.8395,38361.0,38346.0,0.65984563]
[1643698642498,0.4607,38361.0,38358.0,0.02076432]
[1643698642697,0.451124,38360.0,38358.0,0.02076432]
[1643698642900,0.1,38360.0,38358.0,0.02076432]
[1643698643101,0.001,38361.0,38358.0,0.02076432]
[1643698643300,0.2112986,38361.0,38358.0,0.02076432]
[1643698643501,0.2112986,38361.0,38358.0,0.10423693]
[1643698643699,0.3112986,38361.0,38358.0,0.10423693]
[1643698644101,0.2112986,38361.0,38358.0,0.10423693]
[1643698644301,0.2112986,38361.0,38358.0,0.16943478]
[1643698644805,0.001,38361.0,38358.0,0.16943478]
[1643698646001,0.001,38361.0,38358.0,0.4496967]
[1643698646445,0.001,38361.0,38358.0,0.16943478]
[1643698646646,0.001,38361.0,38358.0,0.06519785]
[1643698647044,0.001,38361.0,38358.0,0.05519785]
[1643698649347,0.001,38361.0,38360.0,0.08278578]
[1643698650036,0.001,38361.0,38358.0,0.05519785]
[1643698651733,0.001,38361.0,38359.0,0.2159715]
[1643698652634,0.001,38361.0,38360.0,0.27602654]
[1643698652834,0.001,38361.0,38360.0,0.49835424]
[1643698653031,0.001,38361.0,38360.0,0.84947824]
[1643698653234,0.001,38361.0,38360.0,0.62715054]
[1643698653433,0.001,38365.0,38360.0,0.85283052]
[1643698653655,0.19810647,38374.0,38360.0,0.50170652]
[1643698653656,0.011,38369.0,38360.0,0.50170652]
[1643698653950,0.011,38369.0,38361.0,0.06518575]
[1643698654250,0.011,38369.0,38365.0,0.26532399]
[1643698654648,0.176188,38369.0,38365.0,0.26532399]
[1643698655049,0.111,38369.0,38365.0,0.26532399]
[1643698655651,0.20924859,38369.0,38363.0,0.06518674]
[1643698656650,0.20924859,38369.0,38363.0,0.34803607]
[1643698657999,0.111,38369.0,38363.0,0.34803607]
[1643698658600,0.176188,38369.0,38363.0,0.34803607]
[1643698659401,0.176188,38369.0,38363.0,0.06518674]
[1643698661745,0.3029089,38364.0,38363.0,0.06518674]
[1643698661945,0.3029089,38364.0,38360.0,0.1303715]
[1643698662146,0.3029089,38364.0,38356.0,0.24678215]
[1643698662147,0.351124,38363.0,38356.0,0.24678215]
[1643698662346,0.3029089,38364.0,38356.0,0.13038215]
[1643698662347,0.0521,38362.0,38356.0,0.13038215]
[1643698662646,0.0521,38361.0,38356.0,0.13038215]
[1643698662846,0.54999773,38360.0,38356.0,0.13038215]
[1643698663048,0.19887373,38360.0,38356.0,0.13038215]
[1643698663247,0.2807057,38360.0,38356.0,0.13038215]
[1643698665194,0.26403696,38357.0,38354.0,0.3634]
[1643698665395,0.26403696,38357.0,38350.0,0.13040127]
[1643698665396,0.351124,38356.0,38350.0,0.13040127]
[1643698665598,0.0521,38355.0,38346.0,0.4257]
[1643698665794,0.21491419,38354.0,38347.0,0.22911138]
[1643698665994,0.0521,38353.0,38347.0,0.22911138]
[1643698666194,0.13507828,38353.0,38348.0,0.23485035]
[1643698666794,0.0521,38353.0,38348.0,0.23485035]
[1643698666994,0.0521,38353.0,38348.0,0.30006048]
[1643698667394,0.21106289,38352.0,38348.0,0.30006048]
[1643698667598,0.21106289,38352.0,38347.0,0.01885306]
[1643698667599,0.0521,38351.0,38347.0,0.14926539]
[1643698672596,0.20538385,38350.0,38347.0,0.14926539]
[1643698672795,0.26454039,38350.0,38347.0,0.01885306]
[1643698672996,0.0521,38350.0,38347.0,0.01885306]
[1643698673798,0.05202658,38350.0,38345.0,0.2377736]
[1643698674396,0.05202658,38350.0,38343.0,1.0556]
[1643698674796,0.05202658,38350.0,38344.0,0.01982181]
[1643698675096,0.05202658,38350.0,38343.0,1.0556]
[1643698675596,0.05202658,38350.0,38345.0,0.27893056]
[1643698676471,0.05202658,38350.0,38346.0,0.13041475]
[1643698677273,0.20377517,38349.0,38346.0,0.13041475]
[1643698677474,0.05202658,38350.0,38346.0,0.13041475]
[1643698677774,0.25633377,38350.0,38346.0,0.13041475]
[1643698678377,0.05202658,38350.0,38346.0,0.13041475]
[1643698680899,0.20286442,38349.0,38346.0,0.13041475]
[1643698682999,0.25627387,38350.0,38346.0,0.13041475]
[1643698683203,0.05202658,38350.0,38346.0,0.13041475]
[1643698683400,0.25815599,38350.0,38346.0,0.13041475]
[1643698686454,0.05202658,38350.0,38346.0,0.13041475]
[1643698686651,0.25656902,38350.0,38346.0,0.13041475]
[1643698686853,0.05202658,38350.0,38346.0,0.13041475]
[1643698687053,0.26060867,38350.0,38346.0,0.13041475]
[1643698688701,0.24896074,38350.0,38346.0,0.13041475]
[1643698689906,0.09011334,38348.0,38343.0,1.0556]
[1643698690104,0.09011334,38348.0,38343.0,0.3748]
[1643698690105,0.29654625,38347.0,38343.0,0.3748]
[1643698690305,0.30813452,38347.0,38343.0,0.3748]
[1643698690503,0.30813452,38347.0,38336.0,0.1065]
[1643698690705,0.1,38346.0,38336.0,0.1065]
[1643698690905,0.25551762,38340.0,38336.0,0.1717254]
[1643698691168,0.25551762,38340.0,38337.0,0.351124]
[1643698693463,0.0521,38341.0,38337.0,0.351124]
[1643698693864,0.0521,38341.0,38336.0,0.1956734]
[1643698694067,0.0521,38341.0,38337.0,0.351124]
[1643698694465,0.0521,38341.0,38336.0,0.1956734]
[1643698694665,0.0521,38341.0,38337.0,0.351124]
[1643698694904,0.0521,38341.0,38336.0,0.1956734]
[1643698695106,0.25547295,38341.0,38336.0,0.1956734]
[1643698695705,0.0521,38341.0,38337.0,0.351124]
[1643698695906,0.05178616,38341.0,38337.0,0.351124]
[1643698700450,0.05178616,38341.0,38336.0,0.0652254]
[1643698701754,0.065224,38344.0,38337.0,0.351124]
[1643698701951,0.130448,38348.0,38342.0,0.28815057]
[1643698701952,0.065221,38346.0,38342.0,0.28815057]
[1643698702153,1.384,38352.0,38342.0,0.28815057]
[1643698702406,0.22911138,38351.0,38348.0,0.08141608]
[1643698702608,0.34431138,38353.0,38348.0,0.07945608]
[1643698702805,0.22911138,38353.0,38348.0,0.07945608]
[1643698703005,0.065209,38355.0,38348.0,0.07945608]
[1643698703211,0.22911138,38354.0,38348.0,0.32411633]
[1643698703605,0.22911138,38354.0,38348.0,0.68986295]
[1643698703908,0.065209,38355.0,38348.0,0.68986295]
[1643698704607,0.065209,38355.0,38348.0,0.62465509]
[1643698705409,0.065209,38355.0,38349.0,0.06520519]
[1643698709060,0.065209,38355.0,38348.0,0.32411633]
[1643698710402,0.065209,38355.0,38348.0,0.24466025]
[1643698710604,0.27104653,38355.0,38348.0,0.24466025]
[1643698710804,0.37104653,38355.0,38348.0,0.24466025]
[1643698711103,0.06521,38353.0,38348.0,0.24466025]
[1643698711503,0.06521,38353.0,38348.0,0.26348419]
[1643698713307,0.06521,38353.0,38348.0,0.24466025]
[1643698715052,0.0521,38354.0,38348.0,0.30987006]
[1643698715353,0.0521,38354.0,38343.0,0.4887]
[1643698715354,0.23390084,38351.0,38343.0,0.4887]
[1643698715555,0.22717978,38350.0,38343.0,0.4887]
[1643698715753,0.27927978,38350.0,38343.0,0.4887]
[1643698716154,0.0521,38350.0,38344.0,0.62931834]
[1643698716355,0.0521,38350.0,38345.0,0.22212819]
[1643698716554,0.0521,38350.0,38346.0,0.07905571]
[1643698716754,0.0521,38350.0,38345.0,0.22212819]
[1643698717402,0.0521,38350.0,38346.0,0.06521307]
[1643698717802,0.0521,38350.0,38348.0,0.10146702]
[1643698718003,0.065214,38354.0,38348.0,0.10146702]
[1643698718605,0.2442793,38353.0,38344.0,0.75974027]
[1643698718806,0.22265099,38349.0,38344.0,0.75974027]
[1643698719605,0.22265099,38349.0,38347.0,0.02122041]
[1643698720009,0.22265099,38349.0,38346.0,0.06521464]
[1643698722080,0.065216,38352.0,38346.0,0.06521464]
[1643698722281,0.0521,38351.0,38346.0,0.06521464]
[1643698723381,0.04477444,38351.0,38346.0,0.06521464]
[1643698724783,0.7437224,38353.0,38346.0,0.06521464]
[1643698726513,0.2442793,38353.0,38349.0,0.09881993]
[1643698726914,0.20785828,38358.0,38349.0,0.09881993]
[1643698727313,0.30785828,38358.0,38349.0,0.09881993]
[1643698728213,0.30785828,38358.0,38349.0,0.22923262]
[1643698729758,0.20785828,38358.0,38349.0,0.22923262]
[1643698730059,0.20785828,38358.0,38349.0,0.16402962]
[1643698730258,0.30785828,38358.0,38349.0,0.16402962]
[1643698731559,0.065207,38357.0,38349.0,0.16402962]
[1643698731761,0.20510237,38356.0,38349.0,0.16402962]
[1643698732060,0.20510237,38356.0,38349.0,0.06520969]
[1643698732260,0.20510237,38356.0,38348.0,0.06521077]
[1643698732508,0.06521,38355.0,38348.0,0.06521077]
[1643698732907,0.0521,38354.0,38348.0,0.06521077]
[1643698733111,0.46535643,38353.0,38348.0,0.06521077]
[1643698733406,0.51745643,38353.0,38348.0,0.06521077]
[1643698734508,0.324498,38353.0,38348.0,0.06521077]
[1643698735110,0.0521,38353.0,38348.0,0.06521077]
[1643698735515,0.00152931,38353.0,38346.0,0.25986783]
[1643698735717,0.00152931,38353.0,38350.0,0.0652063]
[1643698737262,0.00152931,38353.0,38348.0,0.08506541]
[1643698737458,0.00152931,38353.0,38348.0,0.06520941]
[1643698738459,0.25798929,38352.0,38348.0,0.06520941]
[1643698738859,0.25798929,38352.0,38347.0,0.06521191]
[1643698739360,0.25798929,38352.0,38344.0,0.62931834]
[1643698739558,0.32320429,38352.0,38348.0,0.02181122]
[1643698740011,0.351124,38351.0,38344.0,0.62931834]
[1643698740211,0.1,38351.0,38344.0,0.62931834]
[1643698740411,0.27755231,38346.0,38343.0,0.4887]
[1643698740612,0.27755231,38346.0,38343.0,0.371]
[1643698741213,0.27755231,38346.0,38344.0,0.01929661]
[1643698742014,0.27755231,38346.0,38343.0,0.371]
[1643698745966,0.065221,38345.0,38343.0,0.371]
[1643698746362,0.065221,38345.0,38341.0,0.5828]
[1643698746762,0.065221,38345.0,38340.0,0.38298408]
[1643698746962,0.065221,38345.0,38339.0,0.0004]
[1643698747165,0.05201063,38344.0,38339.0,0.0004]
[1643698747419,1.800352,38343.0,38339.0,0.0004]
[1643698747619,0.12872308,38342.0,38339.0,0.01939331]
[1643698747818,1.89462595,38341.0,38339.0,0.01939331]
[1643698748018,2.64836722,38340.0,38339.0,0.01939331]
[1643698748219,2.37530355,38340.0,38339.0,0.01939331]
[1643698750018,2.37530355,38340.0,38339.0,0.0004]
[1643698750019,0.99130355,38340.0,38339.0,0.0004]
[1643698751470,2.37530355,38340.0,38339.0,0.0004]
[1643698752068,3.02680355,38340.0,38339.0,0.0004]
[1643698754469,3.07680355,38340.0,38339.0,0.0004]
[1643698756720,3.12680355,38340.0,38339.0,0.0004]
[1643698764152,3.12680355,38340.0,38321.0,0.61689058]
[1643698764153,1.384,38335.0,38321.0,0.38890233]
[1643698764358,1.384,38335.0,38321.0,0.3888]
[1643698764359,0.6515,38328.0,38321.0,0.3888]
[1643698764553,0.403224,38327.0,38318.0,1.4191]
[1643698764752,0.403224,38327.0,38318.0,1.056]
[1643698764753,1.384,38326.0,38318.0,1.056]
[1643698764951,0.403224,38325.0,38318.0,1.056]
[1643698765151,0.32174675,38323.0,38318.0,1.056]
[1643698765351,0.403224,38322.0,38318.0,0.4823]
[1643698765551,0.403224,38322.0,38318.0,0.3635]
[1643698765552,0.24198616,38321.0,38318.0,0.3635]
[1643698765753,0.468491,38320.0,38319.0,0.02157287]
[1643698766177,0.07788786,38317.0,38315.0,0.5397]
[1643698766370,0.0521,38316.0,38315.0,0.5397]
[1643698767068,0.2556844,38316.0,38315.0,0.5397]
[1643698767268,0.0521,38316.0,38315.0,0.5397]
[1643698767674,0.0521,38316.0,38313.0,0.06526057]
[1643698768470,0.0521,38316.0,38313.0,0.28220552]
[1643698768871,0.0521,38316.0,38313.0,0.34746452]
[1643698771215,0.0521,38316.0,38313.0,0.06526057]
[1643698771519,0.0521,38316.0,38311.0,0.43752242]
[1643698771718,0.0521,38316.0,38311.0,0.45649846]
[1643698772518,0.0521,38316.0,38311.0,0.43752242]
[1643698773120,0.0521,38316.0,38311.0,0.50278442]
[1643698774169,0.0521,38316.0,38311.0,0.54570027]
[1643698774969,0.0521,38316.0,38311.0,0.50278442]
[1643698775471,0.0521,38316.0,38312.0,0.06525979]
[1643698775872,0.20381774,38320.0,38312.0,0.06525979]
[1643698778012,0.12707942,38321.0,38312.0,0.06525979]
[1643698780614,0.12707942,38321.0,38312.0,0.10360639]
[1643698780815,0.07497942,38321.0,38312.0,0.06525979]
[1643698781265,0.3049694,38323.0,38312.0,0.33648746]
[1643698781466,0.24939677,38317.0,38312.0,0.10737608]
[1643698781665,0.24939677,38317.0,38311.0,0.43752242]
[1643698782665,0.24405589,38320.0,38311.0,0.50278442]
[1643698782864,0.09725009,38318.0,38311.0,0.50278442]
[1643698783264,0.24405589,38320.0,38311.0,0.50278442]
[1643698783466,0.24405589,38320.0,38312.0,0.22911138]
[1643698783664,0.24405589,38320.0,38311.0,0.43752242]
[1643698783863,0.24405589,38320.0,38311.0,0.38752242]
[1643698784565,0.24405589,38320.0,38312.0,0.06526169]
[1643698784767,0.07858954,38321.0,38312.0,0.06526169]
[1643698785022,0.0521,38321.0,38313.0,0.11195098]
[1643698787326,0.0521,38321.0,38313.0,0.2223639]
[1643698787523,0.0521,38321.0,38313.0,0.15670968]
[1643698789368,0.0521,38321.0,38313.0,0.175794]
[1643698789568,0.0521,38321.0,38313.0,0.15670968]
[1643698790169,0.0521,38321.0,38313.0,0.20344051]
[1643698790368,0.0521,38321.0,38313.0,0.20253189]
[1643698790570,0.29668911,38325.0,38315.0,0.0450674]
[1643698790778,0.1,38325.0,38317.0,0.065256]
[1643698790974,0.1,38325.0,38317.0,0.09910221]
[1643698791169,0.165257,38326.0,38319.0,0.085407]
[1643698792814,0.165257,38326.0,38317.0,0.377173]
[1643698793615,0.165257,38326.0,38318.0,0.20957401]
[1643698793817,0.165257,38326.0,38318.0,0.20972649]
[1643698794215,0.165257,38326.0,38317.0,0.377173]
[1643698794415,0.165257,38326.0,38317.0,0.44242659]
[1643698794616,0.165257,38326.0,38318.0,0.20697656]
[1643698794817,0.165257,38326.0,38317.0,0.44242659]
[1643698795017,0.165257,38326.0,38318.0,0.20790509]
[1643698795320,0.16249635,38325.0,38317.0,0.44242659]
[1643698795718,0.16249635,38325.0,38317.0,0.4609532]
[1643698795917,0.16249635,38325.0,38317.0,0.3618534]
[1643698796184,0.16249635,38325.0,38317.0,0.4118534]
[1643698796375,0.16249635,38325.0,38317.0,0.08378261]
[1643698796575,0.26249635,38325.0,38317.0,0.01852661]
[1643698796777,0.08781354,38320.0,38317.0,0.01852661]
[1643698798179,0.08781354,38320.0,38312.0,0.559414]
[1643698798378,0.08781354,38320.0,38312.0,0.509414]
[1643698799180,0.0521,38322.0,38312.0,0.72109963]
[1643698799380,0.117364,38322.0,38314.0,0.0652628]
[1643698799580,0.210563,38321.0,38314.0,0.0652628]
[1643698799781,0.310563,38321.0,38314.0,0.0652628]
[1643698800424,0.310563,38321.0,38312.0,0.3789]
[1643698801242,1.694563,38321.0,38312.0,0.40044871]
[1643698801624,1.694563,38321.0,38312.0,0.3789]
[1643698802026,0.00387888,38316.0,38312.0,0.3789]
[1643698802227,0.1,38321.0,38312.0,0.44416]
[1643698802429,0.19840019,38321.0,38314.0,0.06525939]
[1643698802627,0.01699748,38322.0,38312.0,0.44416]
[1643698803027,0.11699748,38322.0,38312.0,0.3789]
[1643698803429,0.09433528,38320.0,38312.0,0.3789]
[1643698803677,0.11699748,38322.0,38312.0,0.3789]
[1643698804068,0.18226148,38322.0,38312.0,0.3789]
[1643698804469,0.08226148,38322.0,38312.0,0.3789]
[1643698804669,0.09015368,38321.0,38312.0,0.3789]
[1643698805068,0.00387888,38316.0,38312.0,0.3789]
[1643698805268,0.09015368,38321.0,38312.0,0.39745431]
[1643698805473,0.24461454,38317.0,38312.0,0.39745431]
[1643698805669,0.09015368,38321.0,38312.0,0.3789]
[1643698806270,0.26235412,38320.0,38312.0,0.3789]
[1643698806472,0.08323682,38314.0,38312.0,0.3789]
[1643698806670,0.33747698,38314.0,38311.0,0.01]
[1643698806870,0.0521,38313.0,38311.0,0.01]
[1643698808116,0.00387888,38312.0,38311.0,0.01]
[1643698809316,0.12251524,38312.0,38311.0,0.01]
[1643698817126,0.12251524,38312.0,38311.0,0.361124]
[1643698817326,0.12251524,38312.0,38311.0,0.75939337]
[1643698817524,0.12251524,38312.0,38311.0,0.80939337]
[1643698817924,0.12251524,38312.0,38311.0,0.70939337]
[1643698818425,0.05229401,38312.0,38311.0,0.70939337]
[1643698818685,0.20913557,38326.0,38311.0,0.563224]
[1643698818882,0.29635569,38327.0,38320.0,0.28680401]
[1643698819079,0.22508868,38332.0,38320.0,0.28680401]
[1643698819282,0.22508868,38332.0,38327.0,0.29075083]
[1643698819479,0.22508868,38332.0,38324.0,0.08850791]
[1643698819677,0.22508868,38332.0,38323.0,0.41422653]
[1643698820079,0.30276017,38330.0,38323.0,0.41422653]
[1643698821382,0.30276017,38330.0,38323.0,0.62574814]
[1643698821580,0.08235724,38333.0,38323.0,0.62574814]
[1643698822418,0.08235724,38333.0,38323.0,0.61574814]
[1643698822621,0.2806377,38329.0,38323.0,0.61574814]
[1643698823223,0.2806377,38329.0,38323.0,0.40422653]
[1643698823823,0.2806377,38329.0,38323.0,0.42514781]
[1643698824024,0.05229401,38326.0,38323.0,0.42514781]
[1643698824222,0.05229401,38326.0,38324.0,0.351124]
[1643698825623,0.05229401,38326.0,38323.0,0.46946723]
[1643698826271,0.05229401,38326.0,38324.0,0.351124]
[1643698826774,0.05229401,38326.0,38322.0,0.29005091]
[1643698827170,0.05229401,38326.0,38323.0,0.351124]
[1643698827470,0.05229401,38326.0,38322.0,0.29005091]
[1643698827670,0.05229401,38326.0,38323.0,0.41636535]
[1643698828471,0.14608171,38326.0,38323.0,0.62354312]
[1643698828670,0.14608171,38326.0,38323.0,0.41636535]
[1643698829070,0.0937877,38326.0,38323.0,0.06524135]
[1643698829275,0.05229401,38324.0,38322.0,0.0521]
[1643698829472,0.05229401,38324.0,38323.0,0.351124]
[1643698830417,0.05229401,38324.0,38322.0,0.351124]
[1643698832518,0.05229401,38324.0,38321.0,0.06524422]
[1643698832719,0.05229401,38324.0,38322.0,0.351124]
[1643698833970,0.09191261,38323.0,38322.0,0.351124]
[1643698834573,0.14420662,38323.0,38322.0,0.351124]
[1643698835269,0.05229401,38323.0,38322.0,0.351124]
[1643698835971,0.04948469,38323.0,38322.0,0.351124]
[1643698839625,0.35612865,38329.0,38322.0,0.351124]
[1643698839823,0.35612865,38329.0,38321.0,0.06524422]
[1643698840022,0.04948469,38326.0,38321.0,0.06524422]
[1643698840223,0.04948469,38326.0,38322.0,0.351124]
[1643698840428,0.04948469,38326.0,38324.0,0.3183676]
[1643698840627,0.04948469,38326.0,38325.0,0.6309958]
[1643698840824,0.04948469,38326.0,38325.0,0.503224]
[1643698842280,0.065229,38340.0,38325.0,0.7309958]
[1643698842478,0.001,38343.0,38329.0,0.1]
[1643698842777,0.001,38343.0,38330.0,0.7559958]
[1643698843377,0.001,38343.0,38336.0,0.58088721]
[1643698843576,0.001,38343.0,38338.0,0.06521545]
[1643698843778,0.001,38343.0,38338.0,0.11731545]
[1643698844577,0.001,38343.0,38338.0,0.06521545]
[1643698844779,0.001,38343.0,38339.0,0.21316275]
[1643698845020,0.001,38343.0,38338.0,0.06521545]
[1643698845223,0.001,38343.0,38339.0,0.55880135]
[1643698845423,0.001,38343.0,38339.0,0.20767735]
[1643698845620,0.001,38343.0,38338.0,0.06521545]
[1643698846221,0.001,38343.0,38336.0,0.50836792]
[1643698846422,0.001,38343.0,38337.0,0.351124]
[1643698847022,0.001,38343.0,38336.0,0.36443194]
[1643698847428,0.001,38343.0,38337.0,0.01806737]
[1643698847823,0.05122,38344.0,38337.0,0.01806737]
[1643698848223,0.05122,38344.0,38336.0,0.09399675]
[1643698848678,0.05122,38344.0,38333.0,0.13043842]
[1643698848872,0.05122,38344.0,38333.0,0.35464945]
[1643698849574,0.05122,38344.0,38333.0,0.37659525]
[1643698849775,0.05122,38344.0,38333.0,0.35464945]
[1643698850275,0.05122,38344.0,38335.0,0.10387189]
[1643698850478,0.20336355,38343.0,38333.0,0.13043842]
[1643698850695,0.20336355,38343.0,38330.0,0.125]
[1643698850696,0.065224,38341.0,38330.0,0.125]
[1643698850878,0.22613622,38340.0,38330.0,0.125]
[1643698851276,0.130455,38341.0,38330.0,0.125]
[1643698851578,0.25068868,38334.0,38330.0,0.1453107]
[1643698851778,0.25068868,38334.0,38331.0,0.351124]
[1643698851977,0.25068868,38334.0,38329.0,0.351124]
[1643698852926,0.24568868,38334.0,38329.0,0.351124]
[1643698853726,0.06523,38333.0,38329.0,0.351124]
[1643698854726,0.11523,38333.0,38329.0,0.351124]
[1643698855927,0.11523,38333.0,38329.0,0.55973056]
[1643698856178,0.11523,38333.0,38329.0,0.351124]
[1643698856374,0.11523,38333.0,38327.0,0.3989]
[1643698856574,0.11523,38333.0,38328.0,0.351124]
[1643698856772,0.11523,38333.0,38327.0,0.3989]
[1643698856972,0.11523,38333.0,38328.0,0.351124]
[1643698858273,0.11523,38333.0,38328.0,0.55974104]
[1643698859273,0.11523,38333.0,38328.0,0.351124]
[1643698860526,0.05,38333.0,38328.0,0.351124]
[1643698860926,0.1202,38339.0,38328.0,0.67337106]
[1643698861130,0.42692563,38347.0,38328.0,0.81011156]
[1643698861131,0.3926,38347.0,38328.0,0.81011156]
[1643698861330,0.3926,38347.0,38329.0,0.1]
[1643698861528,0.3926,38347.0,38330.0,0.57726022]
[1643698861726,0.3926,38347.0,38331.0,0.1206]
[1643698861928,0.28627386,38346.0,38337.0,0.24172142]
[1643698862128,0.28627386,38346.0,38340.0,0.06521433]
[1643698862330,0.002,38347.0,38340.0,0.06521433]
[1643698862930,0.002,38347.0,38341.0,0.351124]
[1643698863232,0.002,38347.0,38342.0,0.23947478]
[1643698863428,0.002,38347.0,38340.0,0.68123615]
[1643698863679,0.002,38347.0,38341.0,0.351124]
[1643698863871,0.002,38347.0,38342.0,0.24124105]
[1643698864973,0.052,38347.0,38342.0,0.24124105]
[1643698865176,0.002,38347.0,38342.0,0.24124105]
[1643698865373,0.052,38347.0,38342.0,0.24124105]
[1643698865574,0.052,38347.0,38342.0,0.26279259]
[1643698866374,0.002,38347.0,38343.0,0.351124]
[1643698866578,0.002,38347.0,38344.0,0.2774786]
[1643698866775,0.002,38347.0,38345.0,0.351124]
[1643698866975,0.002,38347.0,38346.0,0.25362953]
[1643698867175,0.002,38347.0,38346.0,0.60475353]
[1643698868429,0.002,38347.0,38346.0,0.66995353]
[1643698869027,0.002,38347.0,38346.0,0.60475353]
[1643698869428,0.001,38352.0,38347.0,0.45]
[1643698869629,0.001,38352.0,38348.0,0.57726022]
[1643698869831,0.001,38352.0,38349.0,0.0521]
[1643698870029,0.001,38352.0,38350.0,0.351124]
[1643698870430,0.001,38352.0,38350.0,1.0491757]
[1643698870628,0.001,38352.0,38350.0,1.0991757]
[1643698871878,0.001,38352.0,38351.0,0.24492377]
[1643698872079,0.001,38352.0,38351.0,0.59604777]
[1643698873178,0.066189,38360.0,38352.0,0.06519057]
[1643698873379,0.066189,38360.0,38353.0,0.57595759]
[1643698873578,0.066189,38360.0,38353.0,0.62595759]
[1643698874483,0.065195,38358.0,38350.0,0.230136]
[1643698874681,0.43752416,38359.0,38347.0,0.2458911]
[1643698874922,0.05,38358.0,38348.0,0.351124]
[1643698875423,0.05,38358.0,38349.0,0.22111345]
[1643698875822,0.05,38358.0,38349.0,0.31710697]
[1643698876023,0.065202,38356.0,38349.0,0.09599352]
[1643698876426,0.065202,38356.0,38347.0,0.5013887]
[1643698876624,0.065202,38356.0,38348.0,0.351124]
[1643698876825,0.115202,38356.0,38348.0,0.55841553]
[1643698877026,0.115202,38356.0,38350.0,0.26554522]
[1643698877226,0.115202,38356.0,38351.0,0.55847758]
[1643698877625,0.115202,38356.0,38351.0,0.351124]
[1643698877825,0.115202,38356.0,38350.0,0.08551678]
[1643698878226,0.115202,38356.0,38349.0,0.06519851]
[1643698878427,0.115202,38356.0,38350.0,0.55562372]
[1643698878683,0.115202,38356.0,38350.0,0.351124]
[1643698878879,0.115202,38356.0,38350.0,0.55656275]
[1643698880478,0.115202,38356.0,38350.0,0.351124]
[1643698880679,0.115202,38356.0,38351.0,0.33466041]
[1643698880980,0.115202,38356.0,38352.0,0.351124]
[1643698881388,0.05,38356.0,38352.0,0.41631702]
[1643698881585,0.051,38357.0,38352.0,0.41631702]
[1643698881781,0.001,38357.0,38352.0,0.41631702]
[1643698881981,0.051,38357.0,38352.0,0.41631702]
[1643698882426,0.32116995,38357.0,38348.0,0.4748311]
[1643698882623,0.065199,38355.0,38348.0,0.4748311]
[1643698882824,0.05,38356.0,38349.0,0.41632223]
[1643698883225,0.27116995,38357.0,38349.0,0.41632223]
[1643698883226,0.32116995,38357.0,38349.0,0.41632223]
[1643698883625,0.051,38357.0,38353.0,0.31304242]
[1643698883933,0.001,38357.0,38354.0,0.351124]
[1643698884527,0.001,38357.0,38353.0,0.351124]
[1643698885327,0.07913622,38361.0,38353.0,0.351124]
[1643698885527,0.3568429,38362.0,38352.0,0.06519337]
[1643698886373,0.3568429,38362.0,38355.0,0.28423621]
[1643698886572,0.3568429,38362.0,38352.0,0.06519337]
[1643698887773,0.3568429,38362.0,38353.0,0.25501116]
[1643698888376,0.4220359,38362.0,38353.0,0.25501116]
[1643698889382,0.20657146,38361.0,38352.0,0.06519337]
[1643698889576,0.4220359,38362.0,38352.0,0.06519337]
[1643698889779,0.20462319,38361.0,38352.0,0.06519337]
[1643698890037,0.20569444,38361.0,38352.0,0.06519337]
[1643698890236,0.20569444,38361.0,38353.0,0.22397202]
[1643698890436,0.20569444,38361.0,38349.0,0.30837075]
[1643698890437,0.24163629,38356.0,38349.0,0.30837075]
[1643698890636,0.24163629,38356.0,38350.0,0.351124]
[1643698891539,0.24163629,38356.0,38351.0,0.27709331]
[1643698891736,0.065199,38359.0,38352.0,0.351124]
[1643698891940,0.18139,38362.0,38353.0,0.19567498]
[1643698892137,0.051,38362.0,38352.0,0.06519204]
[1643698892336,0.001,38362.0,38352.0,0.06519204]
[1643698892836,0.26422074,38360.0,38352.0,0.06519204]
[1643698893036,0.31422074,38360.0,38352.0,0.06519204]
[1643698897831,0.37941674,38360.0,38352.0,0.06519204]
[1643698898030,0.37941674,38360.0,38351.0,0.06519423]
[1643698899230,0.37941674,38360.0,38351.0,0.30001036]
[1643698900434,0.065195,38359.0,38351.0,0.30001036]
[1643698900633,0.065195,38359.0,38352.0,0.20539604]
[1643698901279,0.065195,38359.0,38352.0,0.20408281]
[1643698901478,0.065195,38359.0,38352.0,0.21168072]
[1643698902078,0.065195,38359.0,38352.0,0.2306534]
[1643698902282,0.065195,38359.0,38352.0,0.01897268]
[1643698903881,0.065195,38359.0,38351.0,0.30001036]
[1643698905526,0.065195,38359.0,38351.0,0.32143286]
[1643698905826,0.065195,38359.0,38351.0,0.06519423]
[1643698906228,0.09930746,38353.0,38349.0,0.1129]
[1643698906531,0.09930746,38353.0,38342.0,0.3746]
[1643698906532,0.22093927,38352.0,38342.0,0.3746]
[1643698906828,0.22093927,38352.0,38343.0,0.25918972]
[1643698906829,0.28614927,38352.0,38343.0,0.25918972]
[1643698907028,0.25563159,38348.0,38340.0,0.1197]
[1643698907431,0.30584459,38348.0,38340.0,0.1197]
[1643698907627,0.25563159,38348.0,38340.0,0.25011189]
[1643698907830,0.25563159,38348.0,38342.0,0.351124]
[1643698908028,0.20958679,38347.0,38342.0,0.37144774]
[1643698908427,0.27480779,38347.0,38342.0,0.02032374]
[1643698908697,0.14653389,38346.0,38342.0,0.02032374]
[1643698908987,0.14653389,38346.0,38326.0,0.28126652]
[1643698908988,0.38022417,38340.0,38326.0,0.28126652]
[1643698909187,0.19653389,38346.0,38326.0,0.1193]